[Event "*** Titled Tuesday Blitz AM"]
[Site "Chess.com"]
[Date "2020.01.07"]
[Round "5"]
[White "Chesswizard_2007"]
[Black "ChessFunMaker"]
[Result "1/2-1/2"]
[WhiteElo "2500"]
[BlackElo "2358"]
[TimeControl "180+2"]
[EndTime "10:09:48 PST"]
[Termination "Game drawn by 50-move rule"]

1. d4 {[%clk 0:03:01.9]} 1... Nf6 {[%clk 0:03:00.6]} 2. c4 {[%clk 0:03:01.9]}
2... g6 {[%clk 0:03:01.8]} 3. f3 {[%clk 0:03:02.2]} 3... Bg7 {[%clk 0:02:59.3]}
4. e4 {[%clk 0:03:03.6]} 4... O-O {[%clk 0:02:52.7]} 5. Nc3 {[%clk 0:03:05.1]}
5... c6 {[%clk 0:02:51.3]} 6. Bg5 {[%clk 0:03:06.6]} 6... d6 {[%clk 0:02:43.3]}
7. Qd2 {[%clk 0:03:07.1]} 7... a6 {[%clk 0:02:36.6]} 8. a4 {[%clk 0:03:05.8]}
8... e5 {[%clk 0:02:23.1]} 9. d5 {[%clk 0:03:05.8]} 9... Qc7 {[%clk 0:02:06.3]}
10. Nge2 {[%clk 0:03:06.2]} 10... Nbd7 {[%clk 0:02:06.7]} 11. Ng3 {[%clk
0:03:05.2]} 11... Nc5 {[%clk 0:02:07.3]} 12. Qc2 {[%clk 0:03:02.2]} 12... h6
{[%clk 0:02:04.5]} 13. Be3 {[%clk 0:02:57.9]} 13... cxd5 {[%clk 0:02:04.9]} 14.
Nxd5 {[%clk 0:02:59.8]} 14... Nxd5 {[%clk 0:02:05.4]} 15. cxd5 {[%clk
0:03:01.7]} 15... f5 {[%clk 0:01:39]} 16. Bxc5 {[%clk 0:02:29.1]} 16... dxc5
{[%clk 0:01:32.9]} 17. Bc4 {[%clk 0:02:28.4]} 17... Qd6 {[%clk 0:01:14.3]} 18.
O-O {[%clk 0:02:29]} 18... Bd7 {[%clk 0:01:14.2]} 19. exf5 {[%clk 0:02:17.5]}
19... gxf5 {[%clk 0:01:09.8]} 20. Bd3 {[%clk 0:02:18.5]} 20... Kh8 {[%clk
0:00:34]} 21. Nxf5 {[%clk 0:02:01.9]} 21... Bxf5 {[%clk 0:00:34]} 22. Bxf5
{[%clk 0:02:03.8]} 22... Qxd5 {[%clk 0:00:34.6]} 23. Be4 {[%clk 0:02:03.6]}
23... Qd4+ {[%clk 0:00:35.1]} 24. Kh1 {[%clk 0:02:02.4]} 24... Rab8 {[%clk
0:00:35.5]} 25. Rfd1 {[%clk 0:01:53.4]} 25... Qe3 {[%clk 0:00:31.2]} 26. Rd3
{[%clk 0:01:52.8]} 26... Qg5 {[%clk 0:00:30.6]} 27. Rad1 {[%clk 0:01:44.5]}
27... b6 {[%clk 0:00:19.6]} 28. Qd2 {[%clk 0:01:40.4]} 28... Qxd2 {[%clk
0:00:17]} 29. R3xd2 {[%clk 0:01:42.3]} 29... Bf6 {[%clk 0:00:10.2]} 30. b3
{[%clk 0:01:21.8]} 30... Rfd8 {[%clk 0:00:09.3]} 31. Bd5 {[%clk 0:00:50.6]}
31... b5 {[%clk 0:00:07.7]} 32. axb5 {[%clk 0:00:52.5]} 32... axb5 {[%clk
0:00:09.1]} 33. g3 {[%clk 0:00:47.8]} 33... Kg7 {[%clk 0:00:03.5]} 34. Kg2
{[%clk 0:00:47.6]} 34... Rd7 {[%clk 0:00:04.5]} 35. Kh3 {[%clk 0:00:35.8]} 35...
Bg5 {[%clk 0:00:03]} 36. Rd3 {[%clk 0:00:34.8]} 36... Rbd8 {[%clk 0:00:03]} 37.
Kg4 {[%clk 0:00:32.8]} 37... c4 {[%clk 0:00:03.8]} 38. bxc4 {[%clk 0:00:33.6]}
38... bxc4 {[%clk 0:00:05.2]} 39. Bxc4 {[%clk 0:00:35.5]} 39... Rxd3 {[%clk
0:00:06.4]} 40. Rxd3 {[%clk 0:00:29.4]} 40... Rxd3 {[%clk 0:00:05.7]} 41. Bxd3
{[%clk 0:00:31.3]} 41... Bd2 {[%clk 0:00:05]} 42. Kf5 {[%clk 0:00:31.7]} 42...
Bc3 {[%clk 0:00:06.1]} 43. Ke6 {[%clk 0:00:32.7]} 43... Bb2 {[%clk 0:00:07.1]}
44. Be4 {[%clk 0:00:34.6]} 44... Bc3 {[%clk 0:00:08.3]} 45. h3 {[%clk
0:00:29.1]} 45... Bb2 {[%clk 0:00:09.4]} 46. Kf5 {[%clk 0:00:26.7]} 46... Bc3
{[%clk 0:00:10.5]} 47. h4 {[%clk 0:00:27.2]} 47... Be1 {[%clk 0:00:09.8]} 48.
Kg4 {[%clk 0:00:27.7]} 48... Bc3 {[%clk 0:00:09.7]} 49. Bd3 {[%clk 0:00:28.3]}
49... Bb2 {[%clk 0:00:11]} 50. Bc4 {[%clk 0:00:30.2]} 50... Bc3 {[%clk
0:00:12.3]} 51. Kf5 {[%clk 0:00:31.3]} 51... Bb2 {[%clk 0:00:13.5]} 52. Ke4
{[%clk 0:00:32.1]} 52... Bc3 {[%clk 0:00:14.6]} 53. Kf5 {[%clk 0:00:28.4]} 53...
Bb2 {[%clk 0:00:15.6]} 54. Ba2 {[%clk 0:00:28.5]} 54... Bc3 {[%clk 0:00:16.9]}
55. g4 {[%clk 0:00:27.1]} 55... Bb2 {[%clk 0:00:16]} 56. Bc4 {[%clk 0:00:23.4]}
56... Bc3 {[%clk 0:00:15]} 57. Ke4 {[%clk 0:00:25.3]} 57... Be1 {[%clk
0:00:10.8]} 58. h5 {[%clk 0:00:22.7]} 58... Bg3 {[%clk 0:00:08.5]} 59. Kf5
{[%clk 0:00:22.9]} 59... Bf4 {[%clk 0:00:09.4]} 60. Be6 {[%clk 0:00:24.2]} 60...
Bg3 {[%clk 0:00:09.7]} 61. Bd5 {[%clk 0:00:26.1]} 61... Bf4 {[%clk 0:00:11]} 62.
Be4 {[%clk 0:00:28]} 62... Bg3 {[%clk 0:00:12.4]} 63. g5 {[%clk 0:00:29.5]}
63... hxg5 {[%clk 0:00:12.8]} 64. Kxg5 {[%clk 0:00:31.4]} 64... Bf4+ {[%clk
0:00:14.1]} 65. Kf5 {[%clk 0:00:32.2]} 65... Kh6 {[%clk 0:00:15.3]} 66. Kg4
{[%clk 0:00:34.1]} 66... Bh2 {[%clk 0:00:16.1]} 67. Bg6 {[%clk 0:00:36]} 67...
Bf4 {[%clk 0:00:17.1]} 68. Kf5 {[%clk 0:00:37.9]} 68... Bh2 {[%clk 0:00:18.1]}
69. Ke4 {[%clk 0:00:39.8]} 69... Bf4 {[%clk 0:00:19.3]} 70. Kd5 {[%clk
0:00:41.7]} 70... Bg3 {[%clk 0:00:20.6]} 71. Be4 {[%clk 0:00:43.6]} 71... Bf4
{[%clk 0:00:21.9]} 72. Kc5 {[%clk 0:00:45.5]} 72... Bg3 {[%clk 0:00:23.4]} 73.
Kc6 {[%clk 0:00:47.4]} 73... Bf4 {[%clk 0:00:24.9]} 74. Kc7 {[%clk 0:00:49.3]}
74... Kxh5 {[%clk 0:00:26.4]} 75. Kb8 {[%clk 0:00:51.2]} 75... Kh4 {[%clk
0:00:27.9]} 76. Ka8 {[%clk 0:00:53.1]} 76... Kg3 {[%clk 0:00:29.4]} 77. Ka7
{[%clk 0:00:55]} 77... Kf2 {[%clk 0:00:30.9]} 78. Ka6 {[%clk 0:00:56.9]} 78...
Ke3 {[%clk 0:00:32.5]} 79. Ka5 {[%clk 0:00:58.8]} 79... Kd4 {[%clk 0:00:34]} 80.
Ka4 {[%clk 0:01:00.7]} 80... Be3 {[%clk 0:00:35.3]} 81. Ka3 {[%clk 0:01:02.6]}
81... Bd2 {[%clk 0:00:36.9]} 82. Ka2 {[%clk 0:01:04.5]} 82... Kc3 {[%clk
0:00:37.8]} 83. Ka1 {[%clk 0:01:06.4]} 83... Bc1 {[%clk 0:00:39]} 84. Kb1 {[%clk
0:01:08.3]} 84... Bf4 {[%clk 0:00:40.1]} 85. Ka2 {[%clk 0:01:08.7]} 85... Kd4
{[%clk 0:00:42]} 86. Ka3 {[%clk 0:01:10.6]} 86... Ke3 {[%clk 0:00:43.9]} 87. Ka4
{[%clk 0:01:12.5]} 87... Kd4 {[%clk 0:00:41.4]} 88. Ka5 {[%clk 0:01:14.4]} 88...
Ke3 {[%clk 0:00:42.7]} 89. Ka6 {[%clk 0:01:16.3]} 89... Kd4 {[%clk 0:00:44.2]}
90. Ka7 {[%clk 0:01:18.2]} 90... Ke3 {[%clk 0:00:45.1]} 91. Ka8 {[%clk
0:01:20.1]} 91... Kd4 {[%clk 0:00:46.4]} 92. Kb8 {[%clk 0:01:22]} 92... Ke3
{[%clk 0:00:48.1]} 93. Kc8 {[%clk 0:01:23.9]} 93... Kd4 {[%clk 0:00:50]} 94. Kd8
{[%clk 0:01:25.8]} 94... Ke3 {[%clk 0:00:51.9]} 95. Ke8 {[%clk 0:01:27.7]} 95...
Kd4 {[%clk 0:00:53.8]} 96. Kf8 {[%clk 0:01:29.6]} 96... Ke3 {[%clk 0:00:55.7]}
97. Kg8 {[%clk 0:01:31.5]} 97... Kd4 {[%clk 0:00:57.6]} 98. Kh8 {[%clk
0:01:33.4]} 98... Ke3 {[%clk 0:00:59.5]} 99. Kh7 {[%clk 0:01:35.3]} 99... Kd4
{[%clk 0:01:01.4]} 100. Kg6 {[%clk 0:01:37.2]} 100... Ke3 {[%clk 0:01:03.3]}
101. Kh5 {[%clk 0:01:39.1]} 101... Kd4 {[%clk 0:01:05.2]} 102. Kg4 {[%clk
0:01:41]} 102... Ke3 {[%clk 0:01:07.1]} 103. Kh3 {[%clk 0:01:42.9]} 103... Kd4
{[%clk 0:01:09]} 104. Kg2 {[%clk 0:01:44.8]} 104... Ke3 {[%clk 0:01:10.9]} 105.
Kh1 {[%clk 0:01:46.7]} 105... Bg3 {[%clk 0:01:12.1]} 106. Kg2 {[%clk 0:01:48.6]}
106... Bf4 {[%clk 0:01:13.7]} 107. Kf1 {[%clk 0:01:50.5]} 107... Kd4 {[%clk
0:01:14.5]} 108. Ke1 {[%clk 0:01:52.4]} 108... Ke3 {[%clk 0:01:15.7]} 109. Kd1
{[%clk 0:01:54.3]} 109... Kf2 {[%clk 0:01:17]} 110. Kc2 {[%clk 0:01:56.2]}
110... Ke3 {[%clk 0:01:18.5]} 111. Kb3 {[%clk 0:01:58.1]} 111... Kf2 {[%clk
0:01:19.8]} 112. Ka4 {[%clk 0:02:00]} 112... Ke3 {[%clk 0:01:21.7]} 113. Kb5
{[%clk 0:02:01.9]} 113... Kf2 {[%clk 0:01:23.6]} 114. Bc6 {[%clk 0:02:03.8]}
114... Ke3 {[%clk 0:01:25.5]} 115. Bb7 {[%clk 0:02:05.7]} 115... Ke2 {[%clk
0:01:27.4]} 116. Bc6 {[%clk 0:02:07.6]} 116... Ke3 {[%clk 0:01:28.7]} 117. Be4
{[%clk 0:02:09.5]} 117... Kd4 {[%clk 0:01:30.5]} 118. Kc6 {[%clk 0:02:11.4]}
118... Ke3 {[%clk 0:01:31.9]} 119. Kd7 {[%clk 0:02:13.3]} 119... Kd4 {[%clk
0:01:33.4]} 120. Ke6 {[%clk 0:02:15.2]} 120... Ke3 {[%clk 0:01:34.9]} 121. Kf5
{[%clk 0:02:17.1]} 121... Kd4 {[%clk 0:01:36.3]} 122. Kg6 {[%clk 0:02:19]}
122... Ke3 {[%clk 0:01:37.8]} 123. Kf7 {[%clk 0:02:20.9]} 123... Kd4 {[%clk
0:01:39.4]} 124. Bf5 {[%clk 0:02:22.8]} 124... Ke3 {[%clk 0:01:40.8]} 1/2-1/2

[Event "*** Titled Tuesday Blitz AM"]
[Site "Chess.com"]
[Date "2020.01.07"]
[Round "5"]
[White "kinga2008"]
[Black "Rap_woyska"]
[Result "0-1"]
[WhiteElo "1839"]
[BlackElo "2357"]
[TimeControl "180+2"]
[EndTime "10:09:50 PST"]
[Termination "Rap_woyska won by resignation"]

1. e4 {[%clk 0:03:01.9]} 1... c5 {[%clk 0:02:59.8]} 2. Nf3 {[%clk 0:03:02.4]}
2... e6 {[%clk 0:03:00.5]} 3. d4 {[%clk 0:03:03.8]} 3... cxd4 {[%clk 0:03:02.4]}
4. Nxd4 {[%clk 0:03:05.4]} 4... Nc6 {[%clk 0:03:04.2]} 5. Nb5 {[%clk 0:03:03.5]}
5... d6 {[%clk 0:03:04.8]} 6. Bf4 {[%clk 0:03:00]} 6... e5 {[%clk 0:03:05.6]} 7.
Be3 {[%clk 0:03:01]} 7... Nf6 {[%clk 0:03:07.2]} 8. Bg5 {[%clk 0:02:51.1]} 8...
a6 {[%clk 0:03:08.5]} 9. N5a3 {[%clk 0:02:50.9]} 9... b5 {[%clk 0:02:58.4]} 10.
c3 {[%clk 0:02:48.4]} 10... Be7 {[%clk 0:02:53.8]} 11. Nd2 {[%clk 0:02:43.2]}
11... O-O {[%clk 0:02:53.5]} 12. Nc2 {[%clk 0:02:39.1]} 12... d5 {[%clk
0:02:52.6]} 13. Bxf6 {[%clk 0:02:35.2]} 13... Bxf6 {[%clk 0:02:53.5]} 14. Be2
{[%clk 0:02:35.8]} 14... dxe4 {[%clk 0:02:48.3]} 15. Nxe4 {[%clk 0:02:35.9]}
15... Be7 {[%clk 0:02:49]} 16. O-O {[%clk 0:02:35.8]} 16... Qb6 {[%clk
0:02:45.3]} 17. Ne3 {[%clk 0:02:31.1]} 17... Qa7 {[%clk 0:02:05.7]} 18. Qc2
{[%clk 0:01:58.7]} 18... f5 {[%clk 0:02:00.3]} 19. Nd2 {[%clk 0:01:57.2]} 19...
Be6 {[%clk 0:01:59]} 20. Rad1 {[%clk 0:01:18]} 20... f4 {[%clk 0:01:32.3]} 21.
Qe4 {[%clk 0:00:50.3]} 21... Qc7 {[%clk 0:01:28.9]} 22. Nd5 {[%clk 0:00:45]}
22... Bxd5 {[%clk 0:01:16.3]} 23. Qxd5+ {[%clk 0:00:45.6]} 23... Kh8 {[%clk
0:01:18.2]} 24. Ne4 {[%clk 0:00:43.9]} 24... Rad8 {[%clk 0:01:18.5]} 25. Qb3
{[%clk 0:00:44.9]} 25... Na5 {[%clk 0:01:17.6]} 26. Qc2 {[%clk 0:00:43.7]} 26...
f3 {[%clk 0:01:18.6]} 27. Bxf3 {[%clk 0:00:39.3]} 27... Nc4 {[%clk 0:01:10.3]}
28. Rxd8 {[%clk 0:00:37]} 28... Bxd8 {[%clk 0:01:10.5]} 29. b3 {[%clk
0:00:35.4]} 29... Nb6 {[%clk 0:01:08.3]} 30. Rd1 {[%clk 0:00:31.9]} 30... Qe7
{[%clk 0:01:08.9]} 31. Qd3 {[%clk 0:00:30.3]} 31... Bc7 {[%clk 0:00:58.3]} 32.
c4 {[%clk 0:00:20.9]} 32... bxc4 {[%clk 0:00:55]} 33. bxc4 {[%clk 0:00:22.8]}
33... Rd8 {[%clk 0:00:49.5]} 34. Qc2 {[%clk 0:00:23]} 34... Rd4 {[%clk
0:00:48.1]} 35. Rxd4 {[%clk 0:00:21.5]} 35... exd4 {[%clk 0:00:50]} 36. c5
{[%clk 0:00:22]} 36... Nd7 {[%clk 0:00:47.8]} 37. Qd3 {[%clk 0:00:21.3]} 37...
Qe5 {[%clk 0:00:45.4]} 38. g3 {[%clk 0:00:21.1]} 38... g6 {[%clk 0:00:31.9]} 39.
Qxa6 {[%clk 0:00:19.6]} 39... Kg7 {[%clk 0:00:33.4]} 40. Qc8 {[%clk 0:00:20.2]}
40... Nf8 {[%clk 0:00:29.9]} 41. Qb7 {[%clk 0:00:18.8]} 41... Ne6 {[%clk
0:00:27.4]} 42. Qc8 {[%clk 0:00:19.4]} 42... Nf8 {[%clk 0:00:21.7]} 43. Qb7
{[%clk 0:00:20.2]} 43... Kh6 {[%clk 0:00:22]} 44. a4 {[%clk 0:00:18.1]} 44... d3
{[%clk 0:00:23]} 45. Qb1 {[%clk 0:00:17.4]} 45... Qd4 {[%clk 0:00:23.3]} 46.
Qc1+ {[%clk 0:00:16.3]} 46... Kg7 {[%clk 0:00:24.1]} 47. Qc3 {[%clk 0:00:16.4]}
47... Qxc3 {[%clk 0:00:22.5]} 48. Nxc3 {[%clk 0:00:18.3]} 48... Ne6 {[%clk
0:00:24.4]} 49. Ne4 {[%clk 0:00:11.9]} 49... Nd4 {[%clk 0:00:19.7]} 50. Bd1
{[%clk 0:00:13.1]} 50... Kf7 {[%clk 0:00:19.3]} 51. Kf1 {[%clk 0:00:13.9]} 51...
Ke7 {[%clk 0:00:19]} 52. Ke1 {[%clk 0:00:13.9]} 52... Ba5+ {[%clk 0:00:19.9]}
53. Kf1 {[%clk 0:00:13.4]} 53... h6 {[%clk 0:00:21.3]} 54. f3 {[%clk 0:00:14.2]}
54... Nf5 {[%clk 0:00:21.1]} 55. Kf2 {[%clk 0:00:14.6]} 55... Kd7 {[%clk
0:00:21.6]} 56. g4 {[%clk 0:00:14.9]} 56... Ne7 {[%clk 0:00:19.8]} 57. Ke3
{[%clk 0:00:16.1]} 57... d2 {[%clk 0:00:17.2]} 58. Kd4 {[%clk 0:00:11.1]} 58...
Kc6 {[%clk 0:00:17.2]} 59. Kc4 {[%clk 0:00:11.2]} 59... Nd5 {[%clk 0:00:17.2]}
60. h4 {[%clk 0:00:07.9]} 60... Ne3+ {[%clk 0:00:18.2]} 61. Kd3 {[%clk
0:00:08.1]} 61... Nxd1 {[%clk 0:00:20.1]} 62. Ke2 {[%clk 0:00:07.5]} 62... Nc3+
{[%clk 0:00:17.8]} 63. Nxc3 {[%clk 0:00:08.5]} 63... Bxc3 {[%clk 0:00:19.7]} 64.
f4 {[%clk 0:00:08.9]} 64... Kxc5 {[%clk 0:00:20.4]} 65. f5 {[%clk 0:00:06]}
65... gxf5 {[%clk 0:00:21.2]} 66. gxf5 {[%clk 0:00:07.3]} 66... Kd6 {[%clk
0:00:21.1]} 67. a5 {[%clk 0:00:06.8]} 67... Bxa5 {[%clk 0:00:21.9]} 68. h5
{[%clk 0:00:06.7]} 68... Ke5 {[%clk 0:00:22.9]} 69. f6 {[%clk 0:00:08.1]} 69...
Kxf6 {[%clk 0:00:24.1]} 70. Kd1 {[%clk 0:00:08.4]} 70... Kg5 {[%clk 0:00:26]}
71. Ke2 {[%clk 0:00:09.6]} 71... Kxh5 {[%clk 0:00:27.9]} 72. Kd1 {[%clk
0:00:10.3]} 72... Kg4 {[%clk 0:00:29.8]} 73. Ke2 {[%clk 0:00:11.3]} 73... Kg3
{[%clk 0:00:31]} 74. Kd1 {[%clk 0:00:12.3]} 74... Kf2 {[%clk 0:00:32.9]} 0-1

[Event "*** Titled Tuesday Blitz AM"]
[Site "Chess.com"]
[Date "2020.01.07"]
[Round "6"]
[White "Komissarov_alex"]
[Black "AquivaRubinstein"]
[Result "0-1"]
[WhiteElo "1758"]
[BlackElo "2431"]
[TimeControl "180+2"]
[EndTime "10:12:58 PST"]
[Termination "AquivaRubinstein won by resignation"]

1. d4 {[%clk 0:03:01.9]} 1... Nf6 {[%clk 0:02:52.1]} 2. Nf3 {[%clk 0:02:58.9]}
2... b5 {[%clk 0:02:51.4]} 3. Bg5 {[%clk 0:02:54.8]} 3... Bb7 {[%clk 0:02:50.8]}
4. Nbd2 {[%clk 0:02:52.1]} 4... d6 {[%clk 0:02:47.7]} 5. e3 {[%clk 0:02:47.1]}
5... a6 {[%clk 0:02:48]} 6. Bd3 {[%clk 0:02:44]} 6... Nbd7 {[%clk 0:02:48.6]} 7.
O-O {[%clk 0:02:41.3]} 7... e5 {[%clk 0:02:48.3]} 8. dxe5 {[%clk 0:02:29.9]}
8... Nxe5 {[%clk 0:02:48.2]} 9. Nxe5 {[%clk 0:02:19.9]} 9... dxe5 {[%clk
0:02:48.3]} 10. c4 {[%clk 0:02:00]} 10... Qxd3 {[%clk 0:02:45.7]} 0-1

[Event "*** Titled Tuesday Blitz AM"]
[Site "Chess.com"]
[Date "2020.01.07"]
[Round "6"]
[White "Kirill_Klukin"]
[Black "David_Paravyan"]
[Result "0-1"]
[WhiteElo "2698"]
[BlackElo "2868"]
[TimeControl "180+2"]
[EndTime "10:13:22 PST"]
[Termination "David_Paravyan won by resignation"]

1. Nf3 {[%clk 0:03:01.9]} 1... c5 {[%clk 0:02:57.7]} 2. e3 {[%clk 0:03:01.5]}
2... Nf6 {[%clk 0:02:54.3]} 3. d4 {[%clk 0:03:02.5]} 3... d5 {[%clk 0:02:55.6]}
4. Be2 {[%clk 0:02:57.2]} 4... Nc6 {[%clk 0:02:52.3]} 5. a3 {[%clk 0:02:58.3]}
5... cxd4 {[%clk 0:02:52.9]} 6. exd4 {[%clk 0:03:00.2]} 6... Bf5 {[%clk
0:02:53]} 7. O-O {[%clk 0:03:01.3]} 7... e6 {[%clk 0:02:54.4]} 8. c3 {[%clk
0:03:02.3]} 8... Bd6 {[%clk 0:02:54.4]} 9. Bg5 {[%clk 0:03:03.8]} 9... h6 {[%clk
0:02:53.5]} 10. Bh4 {[%clk 0:03:04.7]} 10... Qc7 {[%clk 0:02:47.4]} 11. Nbd2
{[%clk 0:03:00.2]} 11... Ne4 {[%clk 0:02:46.1]} 12. Nxe4 {[%clk 0:02:58.8]}
12... Bxe4 {[%clk 0:02:48]} 13. Nd2 {[%clk 0:02:57.1]} 13... Bxh2+ {[%clk
0:02:44.8]} 14. Kh1 {[%clk 0:02:58.3]} 14... g5 {[%clk 0:02:44.2]} 15. Nxe4
{[%clk 0:02:28.1]} 15... dxe4 {[%clk 0:02:46.1]} 16. g3 {[%clk 0:02:22.7]} 16...
gxh4 {[%clk 0:02:43.7]} 17. Kxh2 {[%clk 0:02:24]} 17... Rg8 {[%clk 0:02:44.7]}
18. Rg1 {[%clk 0:02:18.7]} 18... e3 {[%clk 0:02:45.3]} 19. Qe1 {[%clk
0:02:17.2]} 19... Ne7 {[%clk 0:02:44.6]} 20. Bf3 {[%clk 0:02:15]} 20... exf2
{[%clk 0:02:38.4]} 21. Qxf2 {[%clk 0:02:16.1]} 21... hxg3+ {[%clk 0:02:39.5]}
0-1

[Event "*** Titled Tuesday Blitz AM"]
[Site "Chess.com"]
[Date "2020.01.07"]
[Round "6"]
[White "HarryCun"]
[Black "Er_is_geen_hoop_meer"]
[Result "0-1"]
[WhiteElo "2066"]
[BlackElo "2370"]
[TimeControl "180+2"]
[EndTime "10:13:22 PST"]
[Termination "Er_is_geen_hoop_meer won by checkmate"]

1. d4 {[%clk 0:03:01.9]} 1... f5 {[%clk 0:03:00]} 2. c4 {[%clk 0:03:03.8]} 2...
Nf6 {[%clk 0:02:58.4]} 3. Nf3 {[%clk 0:03:04.9]} 3... e6 {[%clk 0:02:59.5]} 4.
g3 {[%clk 0:03:06]} 4... Be7 {[%clk 0:03:00.8]} 5. Bg2 {[%clk 0:03:05.6]} 5...
O-O {[%clk 0:03:02]} 6. O-O {[%clk 0:03:07]} 6... d6 {[%clk 0:03:03.6]} 7. Nc3
{[%clk 0:03:07.8]} 7... Ne4 {[%clk 0:03:05]} 8. Qd3 {[%clk 0:03:05.8]} 8... Nxc3
{[%clk 0:03:06]} 9. Qxc3 {[%clk 0:03:06.6]} 9... a5 {[%clk 0:03:07.5]} 10. b3
{[%clk 0:03:07.3]} 10... Nc6 {[%clk 0:03:08.8]} 11. Bb2 {[%clk 0:03:06.5]} 11...
Bf6 {[%clk 0:03:10.3]} 12. Qd2 {[%clk 0:03:06.1]} 12... e5 {[%clk 0:03:11.5]}
13. dxe5 {[%clk 0:03:06.6]} 13... dxe5 {[%clk 0:03:13.4]} 14. Qxd8 {[%clk
0:03:06.6]} 14... Rxd8 {[%clk 0:03:15.3]} 15. Rad1 {[%clk 0:03:07]} 15... Re8
{[%clk 0:03:16.6]} 16. Nd2 {[%clk 0:03:03.7]} 16... a4 {[%clk 0:03:16.3]} 17.
Bd5+ {[%clk 0:03:03.3]} 17... Be6 {[%clk 0:03:14.3]} 18. Bxc6 {[%clk 0:02:56.9]}
18... bxc6 {[%clk 0:03:16.2]} 19. Nf3 {[%clk 0:02:58.4]} 19... Bc8 {[%clk
0:03:11.7]} 20. b4 {[%clk 0:02:54.4]} 20... a3 {[%clk 0:03:12.5]} 21. Bc3 {[%clk
0:02:54.5]} 21... e4 {[%clk 0:03:13.8]} 22. Bxf6 {[%clk 0:02:54.8]} 22... exf3
{[%clk 0:03:13.9]} 23. Rd8 {[%clk 0:02:43.9]} 23... Rxd8 {[%clk 0:03:14.2]} 24.
Bxd8 {[%clk 0:02:44.4]} 24... fxe2 {[%clk 0:03:15]} 25. Re1 {[%clk 0:02:45.5]}
25... Ba6 {[%clk 0:03:16.6]} 26. Rxe2 {[%clk 0:02:45]} 26... Rxd8 {[%clk
0:03:16.9]} 27. Re3 {[%clk 0:02:42.3]} 27... Bxc4 {[%clk 0:03:16.4]} 28. Rxa3
{[%clk 0:02:43]} 28... Rd1+ {[%clk 0:03:17.5]} 29. Kg2 {[%clk 0:02:43]} 29...
Bd5+ {[%clk 0:03:19.4]} 30. f3 {[%clk 0:02:42]} 30... Rd2+ {[%clk 0:03:20.7]}
31. Kh3 {[%clk 0:02:43.3]} 31... Rxa2 {[%clk 0:03:22]} 32. Rd3 {[%clk
0:02:40.9]} 32... Rb2 {[%clk 0:03:21.9]} 33. Rd4 {[%clk 0:02:39.6]} 33... g5
{[%clk 0:03:23]} 34. f4 {[%clk 0:02:38.6]} 34... g4+ {[%clk 0:03:23]} 35. Kh4
{[%clk 0:02:39.8]} 35... h6 {[%clk 0:03:24.8]} 36. h3 {[%clk 0:02:37.1]} 36...
Rh2 {[%clk 0:03:25.3]} 37. Kh5 {[%clk 0:02:37.5]} 37... Kg7 {[%clk 0:03:26.4]}
38. h4 {[%clk 0:02:38.7]} 38... Bf7# {[%clk 0:03:26.8]} 0-1

[Event "*** Titled Tuesday Blitz AM"]
[Site "Chess.com"]
[Date "2020.01.07"]
[Round "6"]
[White "gemarin"]
[Black "vinniethepooh"]
[Result "0-1"]
[WhiteElo "2073"]
[BlackElo "2607"]
[TimeControl "180+2"]
[EndTime "10:13:30 PST"]
[Termination "vinniethepooh won by resignation"]

1. d4 {[%clk 0:03:01.9]} 1... d5 {[%clk 0:02:59.6]} 2. c4 {[%clk 0:03:03.8]}
2... c6 {[%clk 0:03:00]} 3. Nc3 {[%clk 0:03:05.7]} 3... Nf6 {[%clk 0:03:00.4]}
4. Nf3 {[%clk 0:03:06.7]} 4... e6 {[%clk 0:03:01.5]} 5. e3 {[%clk 0:03:05.7]}
5... Nbd7 {[%clk 0:03:02]} 6. Qc2 {[%clk 0:02:58]} 6... b6 {[%clk 0:03:02.9]} 7.
Be2 {[%clk 0:02:57.9]} 7... Bb7 {[%clk 0:03:04]} 8. O-O {[%clk 0:02:48.2]} 8...
Be7 {[%clk 0:03:04.7]} 9. Rd1 {[%clk 0:02:47.6]} 9... O-O {[%clk 0:03:05.1]} 10.
b3 {[%clk 0:02:46.7]} 10... h6 {[%clk 0:03:03.6]} 11. Bb2 {[%clk 0:02:39.9]}
11... Rc8 {[%clk 0:03:04.7]} 12. e4 {[%clk 0:02:40.5]} 12... dxe4 {[%clk
0:02:53.6]} 13. Nxe4 {[%clk 0:02:41.1]} 13... Qc7 {[%clk 0:02:54]} 14. Ne5
{[%clk 0:02:20.3]} 14... Nxe5 {[%clk 0:02:50.1]} 15. dxe5 {[%clk 0:02:19.7]}
15... Nxe4 {[%clk 0:02:51.5]} 16. Qxe4 {[%clk 0:02:20.2]} 16... c5 {[%clk
0:02:53.4]} 17. Qg4 {[%clk 0:02:17.8]} 17... Rcd8 {[%clk 0:02:45.6]} 18. Bc1
{[%clk 0:02:15.4]} 18... Rxd1+ {[%clk 0:02:40.4]} 19. Bxd1 {[%clk 0:02:14.1]}
19... Qxe5 {[%clk 0:02:42.1]} 0-1

[Event "*** Titled Tuesday Blitz AM"]
[Site "Chess.com"]
[Date "2020.01.07"]
[Round "6"]
[White "TST2014"]
[Black "SantoBlue"]
[Result "0-1"]
[WhiteElo "2538"]
[BlackElo "2762"]
[TimeControl "180+2"]
[EndTime "10:13:38 PST"]
[Termination "SantoBlue won by resignation"]

1. d4 {[%clk 0:02:54.4]} 1... Nf6 {[%clk 0:02:54.8]} 2. c4 {[%clk 0:02:54.8]}
2... e6 {[%clk 0:02:54.3]} 3. Nf3 {[%clk 0:02:55.3]} 3... d5 {[%clk 0:02:53.8]}
4. Nc3 {[%clk 0:02:55.9]} 4... c6 {[%clk 0:02:54.8]} 5. e3 {[%clk 0:02:56.5]}
5... Nbd7 {[%clk 0:02:55.1]} 6. Qc2 {[%clk 0:02:57.6]} 6... Bd6 {[%clk
0:02:55.3]} 7. Be2 {[%clk 0:02:58.4]} 7... dxc4 {[%clk 0:02:55.9]} 8. a4 {[%clk
0:02:59.1]} 8... O-O {[%clk 0:02:57.8]} 9. O-O {[%clk 0:02:59.5]} 9... e5 {[%clk
0:02:56.8]} 10. Bxc4 {[%clk 0:02:58.1]} 10... e4 {[%clk 0:02:56.9]} 11. Nxe4
{[%clk 0:02:54.6]} 11... Nxe4 {[%clk 0:02:58.1]} 12. Qxe4 {[%clk 0:02:55.3]}
12... Nf6 {[%clk 0:03:00]} 13. Qh4 {[%clk 0:02:54.7]} 13... h6 {[%clk 0:02:57]}
14. Ne5 {[%clk 0:02:41.6]} 14... Be6 {[%clk 0:02:36.7]} 15. Bxe6 {[%clk
0:02:28.5]} 15... fxe6 {[%clk 0:02:37.9]} 16. Ng6 {[%clk 0:02:17.3]} 16... Rf7
{[%clk 0:02:35.7]} 17. e4 {[%clk 0:02:15.5]} 17... Kh7 {[%clk 0:02:34.7]} 18.
Ne5 {[%clk 0:02:08.1]} 18... Bxe5 {[%clk 0:02:35]} 19. dxe5 {[%clk 0:02:10]}
19... Nd7 {[%clk 0:02:36.7]} 20. f4 {[%clk 0:02:06.6]} 20... Qxh4 {[%clk
0:02:37.5]} 0-1